fUSD/lending_fUSD_20260429
["ID","MTS","AMOUNT","RATE_DAILY","PERIOD"]
[421338183,1777465841000,-3191.98021044,0.00010396,2]
[421338195,1777465841000,-306.36303735,0.00010432,2]
[421338186,1777465841000,-166.8,0.00010411,2]
[421338198,1777465841000,-463.14071928,0.00010433,2]
[421338194,1777465841000,-1000.0,0.00010432,2]
[421338190,1777465841000,-572.09413596,0.00010432,2]
[421338191,1777465841000,-287.81991112,0.00010432,2]
[421338197,1777465841000,-540.53124914,0.00010433,2]
[421338193,1777465841000,-1000.0,0.00010432,2]
[421338192,1777465841000,-1000.0,0.00010432,2]
[421338200,1777465841000,-318.68191341,0.00010433,2]
[421338202,1777465841000,-2000.0,0.00010442,2]
[421338204,1777465841000,-666.66666,0.00010475,2]
[421338203,1777465841000,-161.0,0.0001046,2]
[421338206,1777465841000,-666.66667,0.00010475,2]
[421338209,1777465841000,-666.66666,0.00010475,2]
[421338201,1777465841000,-1000.0,0.00010433,2]
[421338179,1777465841000,-1000.0,0.00010372,2]
[421338196,1777465841000,-1000.0,0.00010433,2]
[421338178,1777465841000,-1000.0,0.00010372,2]
[421338150,1777465841000,-365.0,0.00010145,2]
[421338176,1777465841000,-825.521598,0.00010365,2]
[421338151,1777465841000,-639.0,0.00010146,2]
[421338149,1777465841000,-183.551781,0.00010139,2]
[421338148,1777465841000,-151.0,0.00010139,2]
[421338153,1777465841000,-200.0,0.00010162,2]
[421338163,1777465841000,-150.974,0.00010162,2]
[421338152,1777465841000,-150.0,0.00010162,2]
[421338207,1777465841000,-666.66667,0.00010475,2]
[421338154,1777465841000,-250.0,0.00010162,2]
[421338157,1777465841000,-150.713,0.00010162,2]
[421338155,1777465841000,-204.401,0.00010162,2]
[421338158,1777465841000,-164.508,0.00010162,2]
[421338156,1777465841000,-150.0,0.00010162,2]
[421338162,1777465841000,-150.0,0.00010162,2]
[421338181,1777465841000,-1829.57204503,0.00010388,2]
[421338161,1777465841000,-184.164,0.00010162,2]
[421338159,1777465841000,-166.509,0.00010162,2]
[421338164,1777465841000,-151.0,0.00010162,2]
[421338167,1777465841000,-3427.56307664,0.0001025,2]
[421338166,1777465841000,-1962.812,0.00010165,2]
[421338168,1777465841000,-1266.0,0.00010251,2]
[421338169,1777465841000,-1220.0,0.00010251,2]
[421338175,1777465841000,-825.521598,0.00010365,2]
[421338171,1777465841000,-157.728328,0.0001028,2]
[421338172,1777465841000,-1000.0,0.0001031,2]
[421338170,1777465841000,-151.0,0.0001028,2]
[421338165,1777465841000,-151.0,0.00010162,2]
[421338174,1777465841000,-825.521598,0.00010365,2]
[421338173,1777465841000,-234.90755566,0.00010355,2]
[421338160,1777465841000,-250.457,0.00010162,2]
[421338212,1777465841000,-1000.0,0.00010489,2]
[421338259,1777465841000,-449.85,0.00010703,2]
[421338208,1777465841000,-666.66667,0.00010475,2]
[421338242,1777465841000,-429.0,0.0001049,5]
[421338246,1777465841000,-162.31979731,0.00010496,2]
[421338244,1777465841000,-546576.90592184,0.0001049,3]
[421338247,1777465841000,-264.2,0.00010502,2]
[421338243,1777465841000,-275025.48864603,0.0001049,3]
[421338245,1777465841000,-207.43500361,0.00010496,2]
[421338249,1777465841000,-433.0,0.00010556,2]
[421338250,1777465841000,-160.0,0.00010574,2]
[421338248,1777465841000,-166.66,0.00010538,2]
[421338253,1777465841000,-166.66,0.00010635,2]
[421338263,1777465841000,-449.85,0.00010745,2]
[421338254,1777465841000,-1223.5174914,0.0001069,2]
[421338257,1777465841000,-366487.2048582,0.000107,2]
[421338240,1777465841000,-1006.93960088,0.00010489,2]
[421338264,1777465841000,-449.85,0.00010756,2]
[421338252,1777465841000,-645.00765679,0.000106,2]
[421338256,1777465841000,-514255.61036499,0.000107,2]
[421338260,1777465841000,-449.85,0.00010714,2]
[421338258,1777465841000,-297.52,0.000107,2]
[421338255,1777465841000,-155.669,0.00010699,2]
[421338262,1777465841000,-449.85,0.00010735,2]
[421338265,1777465841000,-449.85999649,0.00010766,2]
[421338267,1777465841000,-1500.0,0.00010858,2]
[421338268,1777465841000,-1500.0,0.0001092,2]
[421338266,1777465841000,-163.0927,0.00010852,2]
[421338271,1777465841000,-500.0,0.00010958,2]
[421338270,1777465841000,-166.67,0.00010948,2]
[421338205,1777465841000,-666.66667,0.00010475,2]
[421338261,1777465841000,-700.0,0.00010729,2]
[421338251,1777465841000,-300.0,0.000106,2]
[421338269,1777465841000,-639.03168407,0.0001092,2]
[421338238,1777465841000,-1000.0,0.00010489,2]
[421338241,1777465841000,-151.0,0.00010489,2]
[421338210,1777465841000,-305.84,0.00010486,2]
[421338211,1777465841000,-1000.0,0.00010489,2]
[421338214,1777465841000,-1000.0,0.00010489,2]
[421338226,1777465841000,-1000.0,0.00010489,2]
[421338225,1777465841000,-1000.0,0.00010489,2]
[421338215,1777465841000,-1000.0,0.00010489,2]
[421338216,1777465841000,-1000.0,0.00010489,2]
[421338213,1777465841000,-1000.0,0.00010489,2]
[421338217,1777465841000,-1000.0,0.00010489,2]
[421338219,1777465841000,-1000.0,0.00010489,2]
[421338221,1777465841000,-1000.0,0.00010489,2]
[421338218,1777465841000,-1000.0,0.00010489,2]
[421338222,1777465841000,-1000.0,0.00010489,2]
[421338224,1777465841000,-1000.0,0.00010489,2]
[421338223,1777465841000,-1000.0,0.00010489,2]
[421338220,1777465841000,-1000.0,0.00010489,2]
[421338234,1777465841000,-1000.0,0.00010489,2]
[421338235,1777465841000,-1000.0,0.00010489,2]
[421338239,1777465841000,-1000.0,0.00010489,2]
[421338237,1777465841000,-1000.0,0.00010489,2]
[421338230,1777465841000,-1000.0,0.00010489,2]
[421338231,1777465841000,-1000.0,0.00010489,2]
[421338227,1777465841000,-1000.0,0.00010489,2]
[421338232,1777465841000,-1000.0,0.00010489,2]
[421338229,1777465841000,-1000.0,0.00010489,2]
[421338233,1777465841000,-1000.0,0.00010489,2]
[421338236,1777465841000,-1000.0,0.00010489,2]
[421338228,1777465841000,-1000.0,0.00010489,2]
[421338308,1777465842000,-264.2,0.00010959,2]
[421338293,1777465842000,-196.338807,0.00010959,2]
[421338302,1777465842000,-196.338807,0.00010959,2]
[421338312,1777465842000,-1500.0,0.0001098,2]
[421338306,1777465842000,-185.85,0.00010959,2]
[421338294,1777465842000,-196.338807,0.00010959,2]
[421338301,1777465842000,-196.338807,0.00010959,2]
[421338310,1777465842000,-1500.0,0.0001098,2]
[421338303,1777465842000,-196.338807,0.00010959,2]
[421338304,1777465842000,-196.338816,0.00010959,2]
[421338313,1777465842000,-1500.0,0.0001098,2]
[421338318,1777465842000,-152.53,0.00010989,2]
[421338305,1777465842000,-150.0,0.00010959,2]
[421338309,1777465842000,-503.26573122,0.0001098,2]
[421338311,1777465842000,-502.17428254,0.0001098,2]
[421338314,1777465842000,-1500.0,0.00010981,2]
[421338317,1777465842000,-305.84,0.00010985,2]
[421338315,1777465842000,-1500.0,0.00010981,2]
[421338325,1777465842000,-300.0,0.00011,2]
[421338316,1777465842000,-979.51915684,0.00010981,2]
[421338296,1777465842000,-196.338807,0.00010959,2]
[421338324,1777465842000,-499.46,0.00011,2]
[421338307,1777465842000,-166.66,0.00010959,2]
[421338291,1777465842000,-196.338807,0.00010959,2]
[421338288,1777465842000,-196.338807,0.00010959,2]
[421338300,1777465842000,-196.338807,0.00010959,2]
[421338319,1777465842000,-300.0,0.00010999,2]
[421338273,1777465842000,-500.0,0.00010958,2]
[421338276,1777465842000,-500.0,0.00010958,2]
[421338277,1777465842000,-576.76169518,0.00010958,2]
[421338275,1777465842000,-500.0,0.00010958,2]
[421338274,1777465842000,-500.0,0.00010958,2]
[421338272,1777465842000,-500.0,0.00010958,2]
[421338278,1777465842000,-1361.46589417,0.00010959,2]
[421338279,1777465842000,-200.0,0.00010959,2]
[421338284,1777465842000,-150.0,0.00010959,2]
[421338280,1777465842000,-200.0,0.00010959,2]
[421338285,1777465842000,-196.338807,0.00010959,2]
[421338283,1777465842000,-4533.13,0.00010959,2]
[421338281,1777465842000,-200.0,0.00010959,2]
[421338282,1777465842000,-500.0,0.00010959,2]
[421338287,1777465842000,-196.338807,0.00010959,2]
[421338286,1777465842000,-196.338807,0.00010959,2]
[421338299,1777465842000,-196.338807,0.00010959,2]
[421338292,1777465842000,-196.338807,0.00010959,2]
[421338298,1777465842000,-196.338807,0.00010959,2]
[421338295,1777465842000,-196.338807,0.00010959,2]
[421338289,1777465842000,-196.338807,0.00010959,2]
[421338290,1777465842000,-196.338807,0.00010959,2]
[421338297,1777465842000,-196.338807,0.00010959,2]
[421338320,1777465842000,-295.90885131,0.00010999,2]
[421338359,1777465842000,-1446.4,0.00011049,2]
[421338326,1777465842000,-1000.0,0.00011,2]
[421338370,1777465842000,-28671.28096666,0.00011099,2]
[421338376,1777465842000,-196.95,0.000111,2]
[421338372,1777465842000,-28671.28096666,0.00011099,2]
[421338371,1777465842000,-28671.28096666,0.00011099,2]
[421338373,1777465842000,-28671.28096666,0.00011099,2]
[421338374,1777465842000,-28671.28096666,0.00011099,2]
[421338375,1777465842000,-206.95,0.000111,2]
[421338378,1777465842000,-166.66,0.00011178,2]
[421338379,1777465842000,-229.94,0.000112,2]
[421338380,1777465842000,-28671.28096666,0.0001121,2]
[421338377,1777465842000,-2854.0,0.00011144,2]
[421338384,1777465842000,-200.0,0.00011294,2]
[421338321,1777465842000,-20198.69,0.00011,2]
[421338383,1777465842000,-166.66,0.00011288,2]
[421338381,1777465842000,-12837.19812897,0.0001121,2]
[421338385,1777465842000,-150.0,0.00011305,2]
[421338382,1777465842000,-150.0,0.00011233,2]
[421338386,1777465842000,-150.0,0.00011305,2]
[421338388,1777465842000,-166.66,0.00011397,2]
[421338390,1777465842000,-649.95076368,0.00011406,2]
[421338392,1777465842000,-622.86348549,0.00011468,2]
[421338389,1777465842000,-2000.0,0.000114,2]
[421338391,1777465842000,-264.2,0.00011416,2]
[421338369,1777465842000,-28671.28096666,0.00011099,2]
[421338368,1777465842000,-28671.28096674,0.00011099,2]
[421338387,1777465842000,-150.0,0.00011305,2]
[421338367,1777465842000,-12837.19812897,0.00011099,2]
[421338366,1777465842000,-12837.19812897,0.00011099,2]
[421338322,1777465842000,-20198.69,0.00011,2]
[421338327,1777465842000,-1000.0,0.00011,2]
[421338330,1777465842000,-1000.0,0.00011,2]
[421338335,1777465842000,-1000.0,0.00011,2]
[421338332,1777465842000,-1000.0,0.00011,2]
[421338334,1777465842000,-1000.0,0.00011,2]
[421338331,1777465842000,-1000.0,0.00011,2]
[421338328,1777465842000,-1000.0,0.00011,2]
[421338353,1777465842000,-1000.0,0.00011,2]
[421338351,1777465842000,-1000.0,0.00011,2]
[421338333,1777465842000,-1000.0,0.00011,2]
[421338323,1777465842000,-20198.69,0.00011,2]
[421338362,1777465842000,-12837.19812897,0.00011099,2]
[421338355,1777465842000,-1000.0,0.00011,2]
[421338364,1777465842000,-12837.19812897,0.00011099,2]
[421338363,1777465842000,-12837.19812897,0.00011099,2]
[421338365,1777465842000,-12837.19812897,0.00011099,2]
[421338361,1777465842000,-12837.19812905,0.00011099,2]
[421338357,1777465842000,-1000.0,0.00011,2]
[421338360,1777465842000,-166.66,0.00011068,2]
[421338356,1777465842000,-1000.0,0.00011,2]
[421338358,1777465842000,-442.88,0.00011023,2]
[421338393,1777465843000,-175.71,0.00011473,2]
[421338399,1777465843000,-175.71,0.00011508,2]
[421338398,1777465843000,-166.66,0.00011507,2]
[421338396,1777465843000,-150.61743645,0.000115,2]
[421338397,1777465843000,-866.56,0.00011507,2]
[421338394,1777465843000,-305.84,0.00011485,2]
[421338395,1777465843000,-2000.0,0.00011486,2]
[421338400,1777465843000,-752.35916358,0.00011528,2]
[421338411,1777465843000,-1863.80656971,0.00011528,2]
[421338406,1777465843000,-723.64083642,0.00011528,2]
[421338407,1777465843000,-524.39783426,0.00011528,2]
[421338410,1777465843000,-540.17297121,0.00011528,2]
[421338408,1777465843000,-1475.60216574,0.00011528,2]
[421338409,1777465843000,-2000.0,0.00011528,2]
[421338413,1777465843000,-28671.28096666,0.00011555,2]
[421338412,1777465843000,-210.85,0.00011554,2]
[421338414,1777465843000,-2000.65845181,0.00011555,2]
[421338405,1777465843000,-524.0,0.00011528,2]
[421338426,1777465844000,-287.68959405,0.000119,2]
[421338425,1777465844000,-7105.45768479,0.000119,2]
[421338416,1777465844000,-210.85,0.00011601,2]
[421338421,1777465844000,-155.0,0.00011769,2]
[421338419,1777465844000,-676.0,0.00011611,2]
[421338418,1777465844000,-151.37,0.00011607,2]
[421338420,1777465844000,-172.98,0.00011642,2]
[421338417,1777465844000,-210.85,0.00011602,2]
[421338422,1777465844000,-538.95600106,0.00011798,2]
[421338424,1777465844000,-28671.28096666,0.000119,2]
[421338415,1777465844000,-10836.53967716,0.00011555,2]
[421338427,1777465844000,-4000.0,0.00010027,2]
[421338423,1777465844000,-264.2,0.00011872,2]
[421338437,1777465844000,-417.0,0.00010119,2]
[421338438,1777465844000,-169.65371431,0.00010119,2]
[421338439,1777465844000,-151.0,0.00010489,2]
[421338440,1777465844000,-182.30756448,0.00012,2]
[421338435,1777465844000,-275.99,9.929e-05,2]
[421338436,1777465844000,-36.34628569,0.00010119,2]
[421338430,1777465844000,-305.84,0.00011984,2]
[421338433,1777465844000,-4000.0,0.00010278,2]
[421338428,1777465844000,-5444.05085013,0.000119,2]
[421338431,1777465844000,-1223.5174914,0.0001199,2]
[421338429,1777465844000,-2000.0,0.0001195,2]
[421338432,1777465844000,-297605.26881218,0.00012,2]
[421338434,1777465844000,-3742.3,0.00012,2]
[421338451,1777465846000,-20058.9043,0.00012,2]
[421338450,1777465846000,-4000.0,0.00010779,2]
[421338445,1777465846000,-1758.31492306,0.00010529,2]
[421338447,1777465846000,-6200.26865134,0.00012,2]
[421338446,1777465846000,-160.0,0.00010574,2]
[421338443,1777465846000,-255.68383557,0.00010529,2]
[421338444,1777465846000,-1550.508,0.00010529,2]
[421338442,1777465846000,-435.49324137,0.00010529,2]
[421338458,1777465867000,2862.162476,7.945e-05,2]
[421338459,1777465872000,200.0,8.138e-05,2]
[421338461,1777465903000,423.0,0.0003013,120]
[421338462,1777465905000,234.43717929,0.0003013,120]
[421338463,1777465949000,1000.2,0.0003013,120]
[421338464,1777465963000,781.0,0.0003013,120]
[421338465,1777466152000,1000.661726,8.178e-05,2]
[421338467,1777466180000,290.0,8.782e-05,20]
[421338470,1777466499000,200.01,4.275e-05,2]
[421338471,1777466539000,2166.26276,0.0003013,120]
[421338473,1777466634000,-0.31629433,8.319e-05,2]
[421338472,1777466634000,-500.0,8.319e-05,2]
[421338474,1777466821000,200.0,8.017e-05,2]
[421338475,1777466855000,1000.0,8.047e-05,2]
[421338489,1777467031000,-300.0,8.512e-05,2]
[421338486,1777467031000,-685.57819612,8.512e-05,2]
[421338487,1777467031000,-482.0,8.512e-05,2]
[421338484,1777467031000,-1200.0,8.51e-05,2]
[421338485,1777467031000,-482.0,8.511e-05,2]
[421338481,1777467031000,-535.59180388,8.4e-05,2]
[421338482,1777467031000,-259.0,8.4e-05,2]
[421338488,1777467031000,-225.77848828,8.512e-05,2]
[421338483,1777467031000,-168.83,8.481e-05,2]
[421338490,1777467031000,-2792.674,8.513e-05,2]
[421338496,1777467031000,-2174.50212326,8.683e-05,2]
[421338493,1777467031000,-535.59180387,8.592e-05,2]
[421338491,1777467031000,-280.284,8.513e-05,2]
[421338501,1777467031000,-150.0,8.729e-05,2]
[421338502,1777467031000,-150.0,8.729e-05,2]
[421338494,1777467031000,-2000.0,8.642e-05,2]
[421338499,1777467031000,-2500.0,8.684e-05,2]
[421338500,1777467031000,-1852.42,8.703e-05,2]
[421338498,1777467031000,-230003.03250164,8.683e-05,2]
[421338497,1777467031000,-264.8511824,8.683e-05,2]
[421338495,1777467031000,-363128.5795927,8.683e-05,2]
[421338492,1777467031000,-21478.6132,8.513e-05,2]
[421338550,1777467032000,-500.0,8.783e-05,2]
[421338548,1777467032000,-500.0,8.783e-05,2]
[421338552,1777467032000,-500.0,8.783e-05,2]
[421338539,1777467032000,-500.0,8.783e-05,2]
[421338538,1777467032000,-500.0,8.783e-05,2]
[421338546,1777467032000,-500.0,8.783e-05,2]
[421338543,1777467032000,-500.0,8.783e-05,2]
[421338529,1777467032000,-500.0,8.783e-05,2]
[421338541,1777467032000,-500.0,8.783e-05,2]
[421338557,1777467032000,-500.0,8.783e-05,2]
[421338555,1777467032000,-500.0,8.783e-05,2]
[421338559,1777467032000,-500.0,8.783e-05,2]
[421338567,1777467032000,-500.0,8.783e-05,2]
[421338566,1777467032000,-445.87670545,8.783e-05,2]
[421338564,1777467032000,-500.0,8.783e-05,2]
[421338563,1777467032000,-500.0,8.783e-05,2]
[421338562,1777467032000,-500.0,8.783e-05,2]
[421338527,1777467032000,-500.0,8.783e-05,2]
[421338565,1777467032000,-500.0,8.783e-05,2]
[421338561,1777467032000,-500.0,8.783e-05,2]
[421338533,1777467032000,-500.0,8.783e-05,2]
[421338572,1777467032000,-500.0,8.783e-05,2]
[421338524,1777467032000,-500.0,8.783e-05,2]
[421338568,1777467032000,-500.0,8.783e-05,2]
[421338503,1777467032000,-150.0,8.729e-05,2]
[421338505,1777467032000,-150.0,8.729e-05,2]
[421338506,1777467032000,-150.0,8.729e-05,2]
[421338509,1777467032000,-535.59180387,8.783e-05,2]
[421338507,1777467032000,-662.19938871,8.782e-05,2]
[421338508,1777467032000,-150.0,8.782e-05,2]
[421338510,1777467032000,-500.0,8.783e-05,2]
[421338514,1777467032000,-500.0,8.783e-05,2]
[421338517,1777467032000,-500.0,8.783e-05,2]
[421338512,1777467032000,-500.0,8.783e-05,2]
[421338519,1777467032000,-500.0,8.783e-05,2]
[421338521,1777467032000,-500.0,8.783e-05,2]
[421338511,1777467032000,-500.0,8.783e-05,2]
[421338522,1777467032000,-500.0,8.783e-05,2]
[421338520,1777467032000,-500.0,8.783e-05,2]
[421338523,1777467032000,-500.0,8.783e-05,2]
[421338525,1777467032000,-500.0,8.783e-05,2]
[421338536,1777467032000,-500.0,8.783e-05,2]
[421338537,1777467032000,-500.0,8.783e-05,2]
[421338535,1777467032000,-500.0,8.783e-05,2]
[421338531,1777467032000,-500.0,8.783e-05,2]
[421338569,1777467032000,-500.0,8.783e-05,2]
[421338588,1777467032000,-500.0,8.783e-05,2]
[421338574,1777467032000,-500.0,8.783e-05,2]
[421338597,1777467032000,-500.0,8.783e-05,2]
[421338598,1777467032000,-500.0,8.783e-05,2]
[421338599,1777467032000,-500.0,8.783e-05,2]
[421338601,1777467032000,-169.09123736,8.783e-05,2]
[421338603,1777467032000,-500.0,8.783e-05,2]
[421338602,1777467032000,-500.0,8.783e-05,2]
[421338600,1777467032000,-500.0,8.783e-05,2]
[421338605,1777467032000,-500.0,8.783e-05,2]
[421338571,1777467032000,-500.0,8.783e-05,2]
[421338595,1777467032000,-500.0,8.783e-05,2]
[421338604,1777467032000,-523.69927032,8.783e-05,2]
[421338609,1777467032000,-500.0,8.783e-05,2]
[421338613,1777467032000,-500.0,8.783e-05,2]
[421338611,1777467032000,-500.0,8.783e-05,2]
[421338610,1777467032000,-452.52928322,8.783e-05,2]
[421338612,1777467032000,-500.0,8.783e-05,2]
[421338606,1777467032000,-333.89049929,8.783e-05,2]
[421338615,1777467032000,-367.4668242,8.783e-05,2]
[421338614,1777467032000,-500.0,8.783e-05,2]
[421338616,1777467032000,-250.0,8.783e-05,2]
[421338608,1777467032000,-500.0,8.783e-05,2]
[421338596,1777467032000,-500.0,8.783e-05,2]
[421338607,1777467032000,-500.0,8.783e-05,2]
[421338594,1777467032000,-500.0,8.783e-05,2]
[421338592,1777467032000,-350.0,8.783e-05,2]
[421338573,1777467032000,-500.0,8.783e-05,2]
[421338575,1777467032000,-500.0,8.783e-05,2]
[421338570,1777467032000,-500.0,8.783e-05,2]
[421338577,1777467032000,-500.0,8.783e-05,2]
[421338576,1777467032000,-500.0,8.783e-05,2]
[421338580,1777467032000,-500.0,8.783e-05,2]
[421338579,1777467032000,-500.0,8.783e-05,2]
[421338581,1777467032000,-500.0,8.783e-05,2]
[421338584,1777467032000,-500.0,8.783e-05,2]
[421338578,1777467032000,-500.0,8.783e-05,2]
[421338583,1777467032000,-500.0,8.783e-05,2]
[421338582,1777467032000,-500.0,8.783e-05,2]
[421338593,1777467032000,-500.0,8.783e-05,2]
[421338591,1777467032000,-500.0,8.783e-05,2]
[421338589,1777467032000,-500.0,8.783e-05,2]
[421338590,1777467032000,-500.0,8.783e-05,2]
[421338585,1777467032000,-500.0,8.783e-05,2]
[421338586,1777467032000,-500.0,8.783e-05,2]
[421338587,1777467032000,-500.0,8.783e-05,2]
[421338643,1777467033000,-150.0,9.699e-05,2]
[421338652,1777467033000,-168.83,9.894e-05,2]
[421338645,1777467033000,-418.93791288,9.711e-05,2]
[421338646,1777467033000,-771.01748645,9.711e-05,2]
[421338647,1777467033000,-181.08010151,9.711e-05,2]
[421338648,1777467033000,-290.26104003,9.711e-05,2]
[421338650,1777467033000,-2000.0,9.723e-05,2]
[421338651,1777467033000,-166.66,9.753e-05,2]
[421338653,1777467033000,-600.0,9.914e-05,2]
[421338649,1777467033000,-217.15233879,9.711e-05,2]
[421338662,1777467033000,-151.0,0.0001,2]
[421338655,1777467033000,-600.0,9.987e-05,2]
[421338656,1777467033000,-600.0,9.989e-05,2]
[421338659,1777467033000,-151.0,0.0001,2]
[421338657,1777467033000,-4696.28303029,0.0001,2]
[421338658,1777467033000,-9361.03576295,0.0001,2]
[421338660,1777467033000,-151.0,0.0001,2]
[421338661,1777467033000,-151.0,0.0001,2]
[421338664,1777467033000,-151.0,0.0001,2]
[421338663,1777467033000,-151.0,0.0001,2]
[421338637,1777467033000,-150.0,9.483e-05,2]
[421338654,1777467033000,-183.0,9.969e-05,2]
[421338642,1777467033000,-154.60966813,9.699e-05,2]
[421338665,1777467033000,-151.0,0.0001,2]
[421338644,1777467033000,-200.0,9.711e-05,2]
[421338622,1777467033000,-150.0,9.16e-05,2]
[421338621,1777467033000,-40000.04,9.132e-05,2]
[421338620,1777467033000,-150.0,9.052e-05,2]
[421338617,1777467033000,-150.0,8.837e-05,2]
[421338618,1777467033000,-150.0,8.944e-05,2]
[421338619,1777467033000,-150.0,8.951e-05,2]
[421338623,1777467033000,-1422.84,9.182e-05,2]
[421338624,1777467033000,-168.83,9.188e-05,2]
[421338625,1777467033000,-150.0,9.214e-05,2]
[421338630,1777467033000,-250.0,9.24e-05,2]
[421338636,1777467033000,-166.66,9.442e-05,2]
[421338627,1777467033000,-500.0,9.215e-05,2]
[421338628,1777467033000,-250.0,9.224e-05,2]
[421338629,1777467033000,-300.0,9.24e-05,2]
[421338632,1777467033000,-267.43319798,9.24e-05,2]
[421338633,1777467033000,-150.0,9.268e-05,2]
[421338634,1777467033000,-1680.0,9.361e-05,2]
[421338635,1777467033000,-150.0,9.375e-05,2]
[421338638,1777467033000,-150.0,9.591e-05,2]
[421338641,1777467033000,-150.0,9.699e-05,2]
[421338640,1777467033000,-150.0,9.699e-05,2]
[421338639,1777467033000,-255.0,9.66e-05,2]
[421338631,1777467033000,-300.0,9.24e-05,2]
[421338666,1777467033000,-151.0,0.0001,2]
[421338626,1777467033000,-2539.07,9.215e-05,2]
[421338676,1777467033000,-600.0,0.00010033,2]
[421338695,1777467033000,-600.0,0.00010235,2]
[421338693,1777467033000,-600.0,0.00010203,2]
[421338699,1777467033000,-600.0,0.00010305,2]
[421338698,1777467033000,-721.0,0.00010297,2]
[421338700,1777467033000,-1422.84,0.0001033,2]
[421338701,1777467033000,-600.0,0.00010331,2]
[421338702,1777467033000,-600.0,0.00010332,2]
[421338704,1777467033000,-630.0,0.00010343,5]
[421338703,1777467033000,-600.0,0.00010339,2]
[421338717,1777467033000,-416.0,0.00010381,2]
[421338697,1777467033000,-4000.0,0.00010278,2]
[421338705,1777467033000,-506.0,0.00010343,5]
[421338709,1777467033000,-166.66,0.00010377,2]
[421338708,1777467033000,-500.0,0.00010356,2]
[421338714,1777467033000,-1220.0,0.00010381,2]
[421338715,1777467033000,-150.0,0.00010381,2]
[421338712,1777467033000,-1049.0,0.00010381,2]
[421338713,1777467033000,-1266.0,0.00010381,2]
[421338711,1777467033000,-1350.0,0.00010381,2]
[421338710,1777467033000,-3532.0,0.00010381,2]
[421338716,1777467033000,-927.0,0.00010381,2]
[421338667,1777467033000,-151.0,0.0001,2]
[421338707,1777467033000,-500.0,0.00010356,2]
[421338694,1777467033000,-600.0,0.00010227,2]
[421338706,1777467033000,-600.0,0.0001035,2]
[421338692,1777467033000,-600.0,0.0001019,2]
[421338696,1777467033000,-600.0,0.00010247,2]
[421338673,1777467033000,-162.0,0.00010015,2]
[421338671,1777467033000,-889.39699183,0.0001,2]
[421338669,1777467033000,-151.0,0.0001,2]
[421338670,1777467033000,-277.74578219,0.0001,2]
[421338672,1777467033000,-600.0,0.00010015,2]
[421338674,1777467033000,-600.0,0.00010015,2]
[421338675,1777467033000,-4000.0,0.00010027,2]
[421338678,1777467033000,-600.0,0.00010037,2]
[421338680,1777467033000,-166.66,0.00010065,2]
[421338668,1777467033000,-151.0,0.0001,2]
[421338677,1777467033000,-600.0,0.00010035,2]
[421338679,1777467033000,-600.0,0.00010049,2]
[421338688,1777467033000,-600.0,0.00010147,2]
[421338691,1777467033000,-600.0,0.00010185,2]
[421338681,1777467033000,-600.0,0.00010068,2]
[421338689,1777467033000,-600.0,0.00010158,2]
[421338687,1777467033000,-600.0,0.00010134,2]
[421338690,1777467033000,-600.0,0.0001016,2]
[421338683,1777467033000,-600.0,0.00010108,2]
[421338685,1777467033000,-600.0,0.00010123,2]
[421338684,1777467033000,-600.0,0.00010113,2]
[421338682,1777467033000,-600.0,0.00010107,2]
[421338686,1777467033000,-600.0,0.00010127,2]
[421338724,1777467034000,-168.83,0.00010601,2]